fUST/lending_fUST_20250702
["ID","MTS","AMOUNT","RATE_DAILY","PERIOD"]
[368982907,1751424639207,-460.0,0.00017577,2]
[368982908,1751424639218,-460.0,0.00017577,2]
[368982909,1751424639227,-460.0,0.00017577,2]
[368982910,1751424639237,-460.0,0.00017577,2]
[368982911,1751424639248,-543.11,0.00017577,2]
[368982913,1751424639258,-460.0,0.00017578,2]
[368982915,1751424639267,-460.0,0.00017578,2]
[368982916,1751424639278,-508.96,0.00017578,2]
[368982917,1751424639287,-460.0,0.00017578,2]
[368982918,1751424639298,-460.0,0.00017578,2]
[368982919,1751424639307,-460.0,0.00017578,2]
[368982920,1751424639316,-460.0,0.00017578,2]
[368982921,1751424639326,-253.72314153,0.00017578,2]
[368982922,1751424639335,-268.02,0.00017578,2]
[368982923,1751424639344,-460.0,0.00017579,2]
[368982924,1751424639353,-460.0,0.00017579,2]
[368982925,1751424639363,-460.0,0.00017579,2]
[368982926,1751424639372,-585.58247671,0.00017579,2]
[368982927,1751424639381,-863.73483462,0.00017579,2]
[368982928,1751424639390,-370000.0,0.00017581,2]
[368982929,1751424639399,-460.0,0.00017679,2]
[368982930,1751424639408,-460.0,0.00017679,2]
[368982931,1751424639418,-486.26,0.00017679,2]
[368982932,1751424639428,-504.52239092,0.00017679,2]
[368982933,1751424639438,-663.33,0.00017679,2]
[368982934,1751424639447,-460.0,0.00017679,2]
[368982935,1751424639456,-424.41440532,0.00017679,2]
[368982936,1751424639466,-460.0,0.00017679,2]
[368982937,1751424639475,-460.0,0.0001768,2]
[368982938,1751424639485,-460.0,0.0001768,2]
[368982939,1751424639495,-633.61,0.0001768,2]
[368982940,1751424639504,-460.0,0.0001768,2]
[368982941,1751424639513,-732.27,0.00017824,2]
[368982942,1751424639522,-460.0,0.00017824,2]
[368982943,1751424639532,-460.0,0.00017824,2]
[368982944,1751424639542,-460.0,0.00017824,2]
[368982945,1751424639551,-460.0,0.00017824,2]
[368982946,1751424639560,-460.0,0.00017851,2]
[368982947,1751424639570,-460.0,0.00017851,2]
[368982948,1751424639579,-460.0,0.00017851,2]
[368982949,1751424639588,-460.0,0.00017851,2]
[368982950,1751424639598,-460.0,0.00017851,2]
[368982951,1751424639608,-543.11,0.00017851,2]
[368982952,1751424639617,-460.0,0.00017852,2]
[368982953,1751424639626,-460.0,0.00017852,2]
[368982954,1751424639636,-508.96,0.00017852,2]
[368982955,1751424639645,-460.0,0.00017852,2]
[368982956,1751424639655,-460.0,0.00017852,2]
[368982957,1751424639665,-460.0,0.00017853,2]
[368982958,1751424639674,-460.0,0.00017853,2]
[368982959,1751424639684,-460.0,0.00017953,2]
[368982960,1751424639693,-491.62336807,0.00017953,2]
[368982961,1751424639702,-663.33,0.00017953,2]
[368982962,1751424639712,-460.0,0.00017953,2]
[368982963,1751424639721,-460.0,0.00017953,2]
[368982964,1751424639731,-460.0,0.00017954,2]
[368982965,1751424639740,-633.61,0.00017954,2]
[368982966,1751424639750,-460.0,0.00017954,2]
[368982967,1751424639760,-732.27,0.00018098,2]
[368982968,1751424639769,-460.0,0.00018098,2]
[368982969,1751424639779,-460.0,0.00018098,2]
[368982970,1751424639788,-460.0,0.00018098,2]
[368982971,1751424639798,-460.0,0.00018098,2]
[368982972,1751424639811,-1072.23169261,0.000181,2]
[368982973,1751424639820,-460.0,0.00018125,2]
[368982974,1751424639831,-460.0,0.00018125,2]
[368982975,1751424639840,-460.0,0.00018125,2]
[368982976,1751424639849,-460.0,0.00018125,2]
[368982977,1751424639859,-543.11,0.00018125,2]
[368982978,1751424639868,-253.65,0.00018126,2]
[368982979,1751424639879,-460.0,0.00018126,2]
[368982980,1751424639889,-508.96,0.00018126,2]
[368982981,1751424639899,-460.0,0.00018126,2]
[368982982,1751424639909,-460.0,0.00018126,2]
[368982983,1751424639919,-460.0,0.00018127,2]
[368982984,1751424639928,-225.32449672,0.00018127,2]
[368982985,1751424639937,-1072.23169255,0.00018176,2]
[368982986,1751424639946,-663.33,0.00018227,2]
[368982987,1751424639956,-460.0,0.00018227,2]
[368982988,1751424639965,-460.0,0.00018227,2]
[368982989,1751424639975,-633.61,0.00018228,2]
[368982990,1751424639984,-177.97913339,0.00018228,2]
[368982991,1751424639994,-732.27,0.00018372,2]
[368982992,1751424640003,-596.46760026,0.00018372,2]
[368982993,1751424640013,-460.0,0.00018372,2]
[368982994,1751424640023,-460.0,0.00018372,2]
[368982995,1751424640032,-460.0,0.00018399,2]
[368982996,1751424640041,-460.0,0.00018399,2]
[368982997,1751424640051,-460.0,0.00018399,2]
[368982998,1751424640060,-543.11,0.00018399,2]
[368982999,1751424640069,-460.0,0.000184,2]
[368983000,1751424640079,-508.96,0.000184,2]
[368983001,1751424640088,-460.0,0.000184,2]
[368983002,1751424640098,-460.0,0.000184,2]
[368983003,1751424640108,-460.0,0.00018401,2]
[368983004,1751424640117,-1072.23169255,0.00018452,2]
[368983005,1751424640127,-663.33,0.00018501,2]
[368983006,1751424640137,-524.15905533,0.00018501,2]
[368983007,1751424640147,-633.61,0.00018502,2]
[368983008,1751424640156,-732.27,0.00018646,2]
[368983009,1751424640166,-460.0,0.00018646,2]
[368983010,1751424640179,-460.0,0.00018646,2]
[368983011,1751424640188,-460.0,0.00018673,2]
[368983013,1751424640197,-460.0,0.00018673,2]
[368983015,1751424640207,-460.0,0.00018673,2]
[368983017,1751424640217,-543.11,0.00018673,2]
[368983019,1751424640226,-460.0,0.00018674,2]
[368983021,1751424640235,-508.96,0.00018674,2]
[368983023,1751424640245,-460.0,0.00018674,2]
[368983025,1751424640254,-460.0,0.00018674,2]
[368983027,1751424640264,-460.0,0.00018675,2]
[368983028,1751424640273,-1072.23169255,0.00018728,2]
[368983031,1751424640283,-663.33,0.00018775,2]
[368983032,1751424640292,-633.61,0.00018776,2]
[368983034,1751424640301,-160.0,0.00018849,2]
[368983035,1751424640311,-230.34465076,0.00018849,2]
[368983036,1751424640320,-215.04179405,0.00018849,2]
[368983038,1751424640329,-837.27862799,0.00018849,2]
[368983040,1751424640338,-2570.10423642,0.000189,2]
[368983042,1751424640347,-732.27,0.0001892,2]
[368983044,1751424640357,-460.0,0.0001892,2]
[368983046,1751424640366,-460.0,0.0001892,2]
[368983048,1751424640375,-460.0,0.00018947,2]
[368983050,1751424640384,-460.0,0.00018947,2]
[368983052,1751424640393,-460.0,0.00018947,2]
[368983054,1751424640403,-543.11,0.00018947,2]
[368983056,1751424640412,-460.0,0.00018948,2]
[368983058,1751424640421,-508.96,0.00018948,2]
[368983060,1751424640430,-460.0,0.00018948,2]
[368983062,1751424640440,-460.0,0.00018948,2]
[368983064,1751424640449,-460.0,0.00018949,2]
[368983066,1751424640458,-1072.23169255,0.00019003,2]
[368983068,1751424640468,-663.33,0.00019049,2]
[368983070,1751424640477,-633.61,0.0001905,2]
[368983072,1751424640486,-54255.2204579,0.00019178,2]
[368983074,1751424640495,-176.502852,0.00019178,2]
[368983076,1751424640505,-732.27,0.00019194,2]
[368983078,1751424640514,-403.55464604,0.00019194,2]
[368983080,1751424640523,-460.0,0.00019194,2]
[368983082,1751424640532,-460.0,0.00019221,2]
[368983084,1751424640541,-460.0,0.00019221,2]
[368983086,1751424640550,-460.0,0.00019221,2]
[368983088,1751424640559,-543.11,0.00019221,2]
[368983090,1751424640568,-460.0,0.00019222,2]
[368983092,1751424640577,-508.96,0.00019222,2]
[368983094,1751424640586,-460.0,0.00019222,2]
[368983096,1751424640598,-460.0,0.00019222,2]
[368983098,1751424640607,-167.45776085,0.00019223,2]
[368983100,1751424640617,-1072.23169255,0.00019279,2]
[368983102,1751424640627,-663.33,0.00019323,2]
[368983104,1751424640636,-633.61,0.00019324,2]
[368983106,1751424640646,-48224.83153581,0.00019329,2]
[368983108,1751424640656,-863.73483462,0.00019384,2]
[368983110,1751424640666,-732.27,0.00019468,2]
[368983112,1751424640675,-460.0,0.00019468,2]
[368983114,1751424640684,-460.0,0.00019495,2]
[368983116,1751424640694,-460.0,0.00019495,2]
[368983118,1751424640703,-460.0,0.00019495,2]
[368983120,1751424640712,-543.11,0.00019495,2]
[368983122,1751424640721,-460.0,0.00019496,2]
[368983124,1751424640731,-508.96,0.00019496,2]
[368983126,1751424640741,-460.0,0.00019496,2]
[368983128,1751424640751,-460.0,0.00019496,2]
[368983130,1751424640760,-1072.23169255,0.00019555,2]
[368983132,1751424640770,-663.33,0.00019597,2]
[368983134,1751424640779,-633.61,0.00019598,2]
[368983136,1751424640789,-732.27,0.00019742,2]
[368983138,1751424640798,-460.0,0.00019742,2]
[368983140,1751424640807,-460.0,0.00019769,2]
[368983142,1751424640816,-460.0,0.00019769,2]
[368983144,1751424640826,-460.0,0.00019769,2]
[368983146,1751424640835,-543.11,0.00019769,2]
[368983148,1751424640844,-460.0,0.0001977,2]
[368983150,1751424640853,-508.96,0.0001977,2]
[368983152,1751424640863,-460.0,0.0001977,2]
[368983154,1751424640872,-460.0,0.0001977,2]
[368983156,1751424640882,-1072.23169255,0.00019831,2]
[368983158,1751424640891,-663.33,0.00019871,2]
[368983160,1751424640901,-633.61,0.00019872,2]
[368983162,1751424640911,-732.27,0.00020016,2]
[368983164,1751424640920,-580.8044152,0.00020016,2]
[368983166,1751424640930,-460.0,0.00020043,2]
[368983168,1751424640940,-460.0,0.00020043,2]
[368983170,1751424640949,-460.0,0.00020043,2]
[368983172,1751424640958,-543.11,0.00020043,2]
[368983174,1751424640967,-460.0,0.00020044,2]
[368983176,1751424640977,-508.96,0.00020044,2]
[368983178,1751424640987,-460.0,0.00020044,2]
[368983180,1751424640996,-460.0,0.00020044,2]
[368983182,1751424641006,-207.93081835,0.00020061,2]
[368983184,1751424641015,-1072.23169255,0.00020107,2]
[368983186,1751424641025,-663.33,0.00020145,2]
[368983188,1751424641037,-633.61,0.00020146,2]
[368983190,1751424641048,-299.277967,0.00020187,2]
[368983192,1751424641058,-732.27,0.0002029,2]
[368983194,1751424641067,-460.0,0.00020317,2]
[368983196,1751424641084,-460.0,0.00020317,2]
[368983198,1751424641094,-460.0,0.00020317,2]
[368983200,1751424641103,-543.11,0.00020317,2]
[368983202,1751424641113,-460.0,0.00020318,2]
[368983204,1751424641122,-508.96,0.00020318,2]
[368983206,1751424641132,-460.0,0.00020318,2]
[368983208,1751424641142,-460.0,0.00020318,2]
[368983210,1751424641151,-1072.23169255,0.00020383,3]
[368983212,1751424641161,-663.33,0.00020419,2]
[368983214,1751424641174,-633.61,0.0002042,2]
[368983216,1751424641184,-732.27,0.00020564,2]
[368983219,1751424641193,-460.0,0.00020591,2]
[368983221,1751424641203,-492.61265808,0.00020591,2]
[368983223,1751424641212,-460.0,0.00020591,2]
[368983225,1751424641222,-543.11,0.00020591,2]
[368983226,1751424641232,-460.0,0.00020592,2]
[368983229,1751424641243,-508.96,0.00020592,2]
[368983231,1751424641255,-460.0,0.00020592,2]
[368983233,1751424641265,-460.0,0.00020592,2]
[368983235,1751424641275,-417.061,0.0002062,2]
[368983237,1751424641285,-1072.23169255,0.00020659,3]
[368983239,1751424641294,-663.33,0.00020693,2]
[368983241,1751424641304,-633.61,0.00020694,2]
[368983243,1751424641314,-732.27,0.00020838,2]
[368983245,1751424641323,-460.0,0.00020865,2]
[368983246,1751424641333,-460.0,0.00020865,2]
[368983249,1751424641344,-543.11,0.00020865,2]
[368983251,1751424641354,-460.0,0.00020866,2]
[368983253,1751424641365,-508.96,0.00020866,2]
[368983255,1751424641374,-460.0,0.00020866,2]
[368983257,1751424641383,-460.0,0.00020866,2]
[368983259,1751424641392,-1072.23169255,0.00020934,4]
[368983261,1751424641402,-663.33,0.00020967,2]
[368983263,1751424641412,-633.61,0.00020968,2]
[368983265,1751424641421,-150.0,0.0002098,2]
[368983267,1751424641430,-732.27,0.00021112,2]
[368983268,1751424641440,-460.0,0.00021139,2]
[368983270,1751424641449,-460.0,0.00021139,2]
[368983272,1751424641459,-543.11,0.00021139,2]
[368983274,1751424641471,-460.0,0.0002114,2]
[368983285,1751424641481,-508.96,0.0002114,2]
[368983287,1751424641593,-460.0,0.0002114,2]
[368983288,1751424641602,-460.0,0.0002114,2]
[368983290,1751424641611,-863.73483462,0.0002119,2]
[368983292,1751424641621,-1072.23169255,0.0002121,4]
[368983294,1751424641631,-663.33,0.00021241,2]
[368983296,1751424641640,-633.61,0.00021242,2]
[368983298,1751424641649,-732.27,0.00021386,2]
[368983299,1751424641658,-505.69477543,0.00021388,2]
[368983301,1751424641668,-460.0,0.00021413,2]
[368983303,1751424641677,-460.0,0.00021413,2]
[368983305,1751424641686,-543.11,0.00021413,2]
[368983307,1751424641695,-460.0,0.00021414,2]
[368983308,1751424641704,-508.96,0.00021414,2]
[368983310,1751424641714,-281.12472163,0.00021414,2]
[368983312,1751424641724,-460.0,0.00021414,2]
[368983314,1751424641733,-1072.23169255,0.00021486,5]
[368983316,1751424641743,-663.33,0.00021515,2]
[368983317,1751424641752,-633.61,0.00021516,2]
[368983319,1751424641761,-524.65,0.000216,2]
[368983321,1751424641770,-732.27,0.0002166,2]
[368983323,1751424641779,-460.0,0.00021687,2]
[368983325,1751424641789,-460.0,0.00021687,2]
[368983326,1751424641798,-543.11,0.00021687,2]
[368983328,1751424641807,-460.0,0.00021688,2]
[368983330,1751424641817,-508.96,0.00021688,2]
[368983332,1751424641827,-309.80888383,0.00021688,2]
[368983334,1751424641836,-1072.23169255,0.00021762,5]
[368983335,1751424641846,-663.33,0.00021789,2]
[368983337,1751424641855,-633.61,0.0002179,2]
[368983339,1751424641866,-150.0,0.00021917,2]
[368983341,1751424641875,-150.16164885,0.00021918,2]
[368983343,1751424641884,-732.27,0.00021934,2]
[368983344,1751424641894,-460.0,0.00021961,2]
[368983346,1751424641904,-460.0,0.00021961,2]
[368983348,1751424641915,-543.11,0.00021961,2]
[368983350,1751424641924,-460.0,0.00021962,2]
[368983352,1751424641933,-508.96,0.00021962,2]
[368983354,1751424641942,-10739.38,0.00022,2]
[368983355,1751424641952,-500.0,0.00022016,2]
[368983357,1751424641961,-500.0,0.00022016,2]
[368983359,1751424641971,-1072.23169255,0.00022038,6]
[368983361,1751424641980,-663.33,0.00022063,2]
[368983363,1751424641990,-633.61,0.00022064,2]
[368983365,1751424642000,-3039.88,0.000221,7]
[368983367,1751424642010,-406.18,0.000221,7]
[368983368,1751424642020,-196.90230409,0.000222,69]
[368983370,1751424642031,-732.27,0.00022208,2]
[368983372,1751424642040,-460.0,0.00022235,2]
[368983374,1751424642053,-460.0,0.00022235,2]
[368983376,1751424642062,-543.11,0.00022235,2]
[368983378,1751424642072,-460.0,0.00022236,2]
[368983380,1751424642081,-508.96,0.00022236,2]
[368983381,1751424642090,-168.0,0.00022271,2]
[368983383,1751424642099,-1072.23169255,0.00022314,7]
[368983385,1751424642108,-663.33,0.00022337,2]
[368983387,1751424642118,-633.61,0.00022338,2]
[368983389,1751424642127,-207.4,0.00022474,2]
[368983390,1751424642137,-690.642,0.00022474,2]
[368983392,1751424642146,-5000.0,0.00022474,2]
[368983394,1751424642155,-1500.0,0.00022474,2]
[368983396,1751424642165,-1500.0,0.00022474,2]
[368983398,1751424642177,-1500.0,0.00022474,2]
[368983400,1751424642186,-1500.0,0.00022474,2]
[368983402,1751424642196,-155.258224,0.00022474,2]
[368983404,1751424642205,-1500.0,0.00022474,2]
[368983405,1751424642215,-1500.0,0.00022474,2]
[368983407,1751424642224,-1500.0,0.00022474,2]
[368983409,1751424642234,-1500.0,0.00022474,2]
[368983411,1751424642244,-1500.0,0.00022474,2]
[368983414,1751424642262,-1500.0,0.00022474,2]
[368983416,1751424642274,-1500.0,0.00022474,2]
[368983417,1751424642284,-1500.0,0.00022474,2]
[368983419,1751424642296,-1500.0,0.00022474,2]
[368983422,1751424642307,-1500.0,0.00022474,2]
[368983424,1751424642317,-528.36678526,0.00022474,2]
[368983425,1751424642327,-732.27,0.00022482,2]
[368983427,1751424642336,-460.0,0.00022509,2]
[368983429,1751424642347,-460.0,0.00022509,2]
[368983431,1751424642356,-543.11,0.00022509,2]
[368983433,1751424642366,-460.0,0.0002251,2]
[368983435,1751424642376,-508.96,0.0002251,2]
[368983437,1751424642386,-716.195754,0.00022529,2]
[368983439,1751424642396,-168.0,0.00022548,2]
[368983440,1751424642406,-902.92971106,0.00022564,2]
[368983441,1751424642415,-341.28550224,0.00022564,2]
[368983442,1751424642425,-742.6949969,0.00022584,2]
[368983443,1751424642435,-1072.23169255,0.0002259,7]
[368983444,1751424642444,-663.33,0.00022611,2]
[368983445,1751424642454,-633.61,0.00022612,2]
[368983446,1751424642464,-770.17471178,0.00022639,2]
[368983447,1751424642474,-150.45212811,0.00022639,2]
[368983448,1751424642484,-150.69802767,0.0002265,2]
[368983449,1751424642493,-168.0,0.00022654,2]
[368983450,1751424642504,-798.67117612,0.00022694,2]
[368983451,1751424642514,-165.48870318,0.00022749,2]
[368983452,1751424642524,-732.45013758,0.00022756,2]
[368983453,1751424642534,-422.0073916,0.00022783,2]
[368983454,1751424642544,-460.0,0.00022783,2]
[368983455,1751424642553,-543.11,0.00022783,2]
[368983456,1751424642563,-446.49541706,0.00022784,2]
[368983457,1751424642574,-508.96,0.00022784,2]
[368983458,1751424642586,-1072.23169255,0.00022866,8]
[368983459,1751424642595,-663.33,0.00022885,2]
[368983460,1751424642605,-633.61,0.00022886,2]
[368983461,1751424642615,-863.73483462,0.00022995,2]
[368983462,1751424642625,-1000.0,0.00023,2]
[368983463,1751424642635,-1000.0,0.00023,2]
[368983464,1751424642644,-1000.0,0.00023,2]
[368983465,1751424642654,-1000.0,0.00023,2]
[368983466,1751424642663,-1000.0,0.00023,2]
[368983467,1751424642673,-1000.0,0.00023,2]
[368983468,1751424642683,-1000.0,0.00023,2]
[368983469,1751424642692,-1000.0,0.00023,2]
[368983470,1751424642702,-1000.0,0.00023,2]
[368983471,1751424642711,-1000.0,0.00023,2]
[368983472,1751424642721,-1000.0,0.00023,2]
[368983473,1751424642731,-1000.0,0.00023,2]
[368983475,1751424642742,-1000.0,0.00023,2]
[368983477,1751424642754,-1000.0,0.00023,2]
[368983479,1751424642763,-1000.0,0.00023,2]
[368983481,1751424642773,-1000.0,0.00023,2]
[368983483,1751424642782,-1000.0,0.00023,2]
[368983484,1751424642791,-1000.0,0.00023,2]
[368983486,1751424642801,-1000.0,0.00023,2]
[368983489,1751424642811,-1000.0,0.00023,2]
[368983491,1751424642820,-1000.0,0.00023,2]
[368983493,1751424642829,-1000.0,0.00023,2]
[368983495,1751424642838,-1000.0,0.00023,2]
[368983497,1751424642848,-1000.0,0.00023,2]
[368983499,1751424642857,-1000.0,0.00023,2]
[368983501,1751424642867,-1000.0,0.00023,2]
[368983503,1751424642880,-1000.0,0.00023,2]
[368983505,1751424642890,-1000.0,0.00023,2]
[368983507,1751424642900,-1000.0,0.00023,2]
[368983510,1751424642909,-293.09140728,0.00023,2]
[368983515,1751424642935,-460.0,0.00018372,2]
[368983519,1751424642946,-706.90859272,0.00023,2]
[368983522,1751424642956,-414.07589293,0.00023,2]
[368983546,1751424643131,-0.02122754,0.00018646,2]
[368983591,1751424643503,-531.08,0.00017405,2]
[368983593,1751424643513,-459.97877246,0.00018646,2]
[368983595,1751424643523,-460.0,0.0001892,2]
[368983597,1751424643533,-460.0,0.00019194,2]
[368983600,1751424643543,-460.0,0.00019468,2]
[368983602,1751424643553,-460.0,0.00019742,2]
[368983604,1751424643562,-152.61627334,0.00020016,2]
[368983606,1751424643571,-431.36340288,0.00023,2]
[368983864,1751424646851,-460.0,0.00017303,2]
[368983866,1751424646862,-154.56070419,0.00023,2]
[368983868,1751424646871,-1000.0,0.00023,2]
[368983870,1751424646882,-1000.0,0.00023,2]
[368983872,1751424646901,-1688.60506597,0.00023022,2]
[368984065,1751424748580,-460.0,0.00016454,2]
[368984066,1751424748606,-460.0,0.00016454,2]
[368984067,1751424748630,-460.0,0.00016454,2]
[368984068,1751424748654,-460.0,0.00016728,2]
[368984069,1751424748677,-460.0,0.00016728,2]
[368984070,1751424748699,-460.0,0.00017002,2]
[368984071,1751424748722,-294.94,0.00017002,2]
[368984072,1751424748745,-500.0,0.00017132,2]
[368984073,1751424748766,-288.06,0.00017132,2]
[368984074,1751424813279,-460.0,0.00016454,2]
[368984075,1751424899008,7741.03951641,0.00016333,2]
[368984076,1751424899030,17158.96048359,0.00016333,2]
[368984077,1751424899693,-12.56008311,0.00016454,2]
[368984078,1751424941121,-258.95853331,0.00016959,2]
[368984079,1751424950569,-213.31200935,0.00016959,2]
[368984080,1751424953927,-192.05248127,0.00016959,2]
[368984081,1751424959274,-225.96498749,0.00016959,2]
[368984082,1751424961428,-208.5077479,0.00016959,2]
[368984083,1751424964892,-198.45857212,0.00016959,2]
[368984084,1751424967146,-179.17117521,0.00016959,2]
[368984085,1751424969211,-244.71187871,0.00016959,2]
[368984086,1751424977575,-198.3357144,0.00016959,2]
[368984087,1751424982813,-160.91480603,0.00016959,2]
[368984088,1751424986918,-256.02781412,0.00016959,2]
[368984090,1751425127464,2841.03951641,0.000164,2]
[368984091,1751425127488,2158.96048359,0.000164,2]
[368984092,1751425143206,5000.0,0.000164,2]
[368984093,1751425159160,5000.0,0.000164,2]
[368984094,1751425175410,2748.076205,0.000164,2]
[368984096,1751425191841,5000.0,0.000164,2]
[368984097,1751425208528,92.96331141,0.000164,2]
[368984098,1751425208551,4907.03668859,0.000164,2]
[368984099,1751425223925,5000.0,0.000164,2]
[368984100,1751425255149,5000.0,0.000164,2]
[368984101,1751425271593,5000.0,0.000164,2]
[368984102,1751425287033,92.96331141,0.000164,2]
[368984103,1751425287057,4907.03668859,0.000164,2]
[368984104,1751425302300,750.03331691,0.000164,2]
[368984105,1751425318087,5000.0,0.000164,2]
[368984106,1751425333484,5000.0,0.000164,2]
[368984107,1751425346852,-242.23530072,0.00016615,2]
[368984108,1751425348990,4342.9299945,0.000164,2]
[368984109,1751425349015,657.0700055,0.000164,2]
[368984112,1751425553755,5000.0,0.000164,2]
[368984113,1751425569627,5000.0,0.000164,2]
[368984114,1751425587718,5000.0,0.000164,2]
[368984115,1751425603062,3720.12006392,0.000164,2]
[368984116,1751425633832,622.80993058,0.000164,2]
[368984117,1751425633856,4377.19006942,0.000164,2]
[368984118,1751425651144,-216.8957324,0.00016613,2]
[368984119,1751425651166,-113.82557203,0.00017028,2]
[368984120,1751425652157,5000.0,0.000164,2]
[368984121,1751425752120,-163.79460839,0.0001661,2]
[368984122,1751425762109,-62.47046709,0.0001661,2]
[368984123,1751425762133,-144.89437515,0.00016858,2]
[368984124,1751425765627,312.030178,0.00013699,2]
[368984128,1751425790589,1341.0,0.00025146,60]
[368984200,1751425832824,-31.25236087,0.00016858,2]
[368984202,1751425832833,-266.0,0.00017122,2]
[368984204,1751425832843,-300.0,0.00017122,2]
[368984206,1751425832853,-1200.0,0.00017122,2]
[368984208,1751425832862,-300.0,0.00017122,2]
[368984209,1751425832871,-500.0,0.00017123,2]
[368984211,1751425832880,-61.12763913,0.00017123,2]
[368984213,1751425832891,-367.89812471,0.00017123,2]
[368984216,1751425832906,-70.97423616,0.00017123,2]
[368984218,1751425832915,-500.0,0.00017123,2]
[368984221,1751425832925,-413.7984741,0.00017123,2]
[368984224,1751425832934,-562.26923097,0.00017123,2]
[368984227,1751425832944,-310.49002965,0.00017123,2]
[368984230,1751425832954,-500.0,0.00017123,2]
[368984233,1751425832963,-432.60878976,0.00017123,2]
[368984237,1751425832973,-500.0,0.00017123,2]
[368984239,1751425832982,-500.0,0.00017123,2]
[368984241,1751425832992,-500.0,0.00017123,2]
[368984243,1751425833001,-500.0,0.00017123,2]
[368984245,1751425833010,-500.0,0.00017123,2]
[368984248,1751425833020,-419.43770902,0.00017123,2]
[368984250,1751425833030,-500.0,0.00017123,2]
[368984252,1751425833040,-500.0,0.00017123,2]
[368984253,1751425833049,-500.0,0.00017123,2]
[368984255,1751425833059,-500.0,0.00017123,2]
[368984258,1751425833068,-181.43499713,0.00017123,2]
[368984260,1751425833078,-500.0,0.00017123,2]
[368984262,1751425833087,-500.0,0.00017123,2]
[368984264,1751425833097,-500.0,0.00017123,2]
[368984266,1751425833106,-282.07330168,0.00017123,2]
[368984268,1751425833116,-500.0,0.00017123,2]
[368984269,1751425833125,-500.0,0.00017123,2]
[368984272,1751425833135,-500.0,0.00017123,2]
[368984274,1751425833145,-500.0,0.00017123,2]
[368984276,1751425833154,-503.71903666,0.00017123,2]
[368984278,1751425833163,-500.0,0.00017123,2]
[368984279,1751425833173,-471.59306159,0.00017123,2]
[368984282,1751425833183,-465.77407596,0.00017125,2]
[368984284,1751425833192,-466.81981351,0.00017125,2]
[368984285,1751425833202,-507.68965349,0.00017125,2]
[368984288,1751425833211,-460.0,0.00017125,2]
[368984290,1751425833221,-460.0,0.00017125,2]
[368984292,1751425833230,-460.0,0.00017125,2]
[368984294,1751425833240,-460.0,0.00017125,2]
[368984296,1751425833250,-460.0,0.00017126,2]
[368984298,1751425833259,-464.40032236,0.00017126,2]
[368984300,1751425833269,-466.01154245,0.00017126,2]
[368984302,1751425833279,-376.04156677,0.00017126,2]
[368984304,1751425833289,-225.52117618,0.00017126,2]
[368984306,1751425833299,-464.55452281,0.00017126,2]
[368984308,1751425833309,-470.62693658,0.00017126,2]
[368984310,1751425833318,-469.41115405,0.00017126,2]
[368984312,1751425833328,-465.3541993,0.00017126,2]
[368984314,1751425833337,-463.89576841,0.00017126,2]